bitfinex-derivatives/quotes_BTCF0:USTF0_20251111
["timestamp","ask_amount","ask_price","bid_price","bid_amount"]
[1762840029934,0.15791153,105430.0,105420.0,0.28801426]
[1762840030135,0.15791153,105430.0,105420.0,0.38290676]
[1762840030335,0.15791153,105430.0,105420.0,0.15801426]
[1762840030542,0.15791153,105430.0,105420.0,0.27801426]
[1762840031344,0.15791153,105430.0,105420.0,0.15801426]
[1762840031643,0.15791153,105430.0,105420.0,0.24316584]
[1762840031849,0.15791153,105430.0,105420.0,0.12389158]
[1762840032544,0.15791153,105430.0,105420.0,0.03874]
[1762840033845,0.15791153,105430.0,105410.0,0.08529403]
[1762840034041,0.1513625,105420.0,105410.0,0.31282835]
[1762840034241,0.24745335,105420.0,105410.0,0.26571181]
[1762840034552,0.15356053,105420.0,105410.0,0.08529403]
[1762840035352,0.15356053,105420.0,105410.0,0.10466403]
[1762840035649,0.15356053,105420.0,105410.0,0.00014245]
[1762840035842,0.15356053,105420.0,105410.0,0.11941671]
[1762840036146,0.24745335,105420.0,105410.0,0.00014245]
[1762840036345,0.24745335,105420.0,105410.0,0.08539347]
[1762840036547,0.24945335,105420.0,105410.0,0.08539347]
[1762840036752,0.24945335,105420.0,105410.0,0.00014245]
[1762840038450,0.15556053,105420.0,105410.0,0.03888245]
[1762840038650,0.24945335,105420.0,105410.0,0.01951245]
[1762840038845,0.24945335,105420.0,105410.0,0.03888245]
[1762840039246,0.24945335,105420.0,105410.0,0.01951245]
[1762840039850,0.24945335,105420.0,105410.0,0.00014245]
[1762840040841,0.24945335,105420.0,105410.0,0.13277527]
[1762840040842,0.06066803,105420.0,105410.0,0.13277527]
[1762840041047,0.15556053,105420.0,105410.0,0.13277527]
[1762840041856,0.15556053,105420.0,105410.0,0.00014245]
[1762840042151,0.24945335,105420.0,105410.0,0.00014245]
[1762840042955,0.15556053,105420.0,105410.0,0.00014245]
[1762840045057,0.05804,105400.0,105390.0,0.19597239]
[1762840045353,0.24904135,105400.0,105390.0,0.11927426]
[1762840045555,0.1529595,105390.0,105380.0,0.26735499]
[1762840045760,0.15515753,105390.0,105380.0,0.15829426]
[1762840045946,0.15515753,105390.0,105380.0,0.05461791]
[1762840046955,0.15515753,105390.0,105380.0,0.05661791]
[1762840047248,0.15515753,105390.0,105380.0,0.15051073]
[1762840047552,0.15515753,105390.0,105380.0,0.27851073]
[1762840047755,0.15515753,105390.0,105380.0,0.28051073]
[1762840048254,0.06023803,105390.0,105380.0,0.44051073]
[1762840048455,0.06023803,105390.0,105380.0,0.43851073]
[1762840049747,0.15515753,105390.0,105380.0,0.14851073]
[1762840052554,0.15515753,105390.0,105380.0,0.27851073]
[1762840052555,0.06023803,105390.0,105380.0,0.27851073]
[1762840052957,0.06023803,105390.0,105380.0,0.40851073]
[1762840053255,0.06023803,105390.0,105380.0,0.50343923]
[1762840054049,0.01328245,105400.0,105380.0,0.50343923]
[1762840054254,0.06038048,105400.0,105390.0,0.13291282]
[1762840054454,0.06038048,105400.0,105390.0,0.50783232]
[1762840055050,0.02502048,105400.0,105390.0,0.75188824]
[1762840055455,0.02502048,105400.0,105390.0,0.65799542]
[1762840055655,0.04724048,105400.0,105390.0,0.65799542]
[1762840056166,0.04724048,105400.0,105390.0,0.65899542]
[1762840056760,0.04724048,105400.0,105390.0,0.65999542]
[1762840058658,0.04724048,105400.0,105390.0,0.77926968]
[1762840059564,0.14215098,105400.0,105390.0,0.68435018]
[1762840059958,0.15529098,105400.0,105390.0,0.30351736]
[1762840060156,0.2491838,105400.0,105390.0,0.16029426]
[1762840060353,0.15529098,105400.0,105390.0,0.04102]
[1762840060558,0.2491838,105400.0,105390.0,0.04102]
[1762840060856,0.15529098,105400.0,105390.0,0.04102]
[1762840061164,0.2491838,105400.0,105390.0,0.002]
[1762840061364,0.2491838,105400.0,105390.0,0.001]
[1762840061665,0.5491838,105400.0,105390.0,0.001]
[1762840062465,0.1529595,105390.0,105380.0,0.05461791]
[1762840062666,0.51515753,105390.0,105380.0,0.05461791]
[1762840063166,0.51515753,105390.0,105380.0,0.17389217]
[1762840063660,0.51515753,105390.0,105380.0,0.63271349]
[1762840063661,0.42023803,105390.0,105380.0,0.63271349]
[1762840064664,0.42023803,105390.0,105380.0,0.77525385]
[1762840066660,0.42023803,105390.0,105380.0,0.65597959]
[1762840067867,0.42023803,105390.0,105380.0,0.65697959]
[1762840068867,0.42023803,105390.0,105380.0,0.65797959]
[1762840073872,0.36219803,105390.0,105380.0,0.65797959]
[1762840074872,0.40647803,105390.0,105380.0,0.65797959]
[1762840075075,0.38429803,105390.0,105380.0,0.65797959]
[1762840075777,0.40647803,105390.0,105380.0,0.65797959]
[1762840077377,0.36219803,105390.0,105380.0,0.65797959]
[1762840077775,0.38482803,105390.0,105380.0,0.65797959]
[1762840078378,0.40595803,105390.0,105380.0,0.65797959]
[1762840080679,0.41913803,105390.0,105380.0,0.29305109]
[1762840080875,0.41913803,105390.0,105380.0,0.66797959]
[1762840081273,0.02277245,105400.0,105390.0,0.1408795]
[1762840081478,0.32277245,105400.0,105390.0,0.66866514]
[1762840081682,0.34390245,105400.0,105390.0,0.81123548]
[1762840081876,0.32277245,105400.0,105390.0,0.81123548]
[1762840082183,0.32497048,105400.0,105390.0,0.98181099]
[1762840083081,0.34610048,105400.0,105390.0,0.98181099]
[1762840083279,0.32497048,105400.0,105390.0,0.98281099]
[1762840083474,0.00014245,105400.0,105390.0,1.31489215]
[1762840083676,0.06511245,105400.0,105390.0,1.31489215]
[1762840083983,0.06511245,105400.0,105390.0,1.14431664]
[1762840084281,0.05697,105420.0,105410.0,0.0949015]
[1762840084478,0.42916803,105420.0,105410.0,0.09389282]
[1762840084682,0.05694,105410.0,105400.0,0.26547378]
[1762840084882,0.41913803,105410.0,105400.0,0.58547378]
[1762840085083,0.41913803,105410.0,105400.0,0.82273173]
[1762840085679,0.17913803,105410.0,105400.0,0.82273173]
[1762840085884,0.37913803,105410.0,105400.0,0.91662455]
[1762840086085,0.37913803,105410.0,105400.0,0.82273173]
[1762840086385,0.37913803,105410.0,105400.0,0.91662455]
[1762840086888,0.37913803,105410.0,105400.0,1.01050721]
[1762840087081,0.33537803,105410.0,105400.0,1.41800485]
[1762840087281,0.35581,105410.0,105400.0,1.41800485]
[1762840087482,0.37694,105410.0,105400.0,1.18080485]
[1762840088192,0.05694,105410.0,105400.0,1.18080485]
[1762840088398,0.01318,105410.0,105400.0,1.41800485]
[1762840088598,0.03581,105410.0,105400.0,1.41800485]
[1762840088798,0.03581,105410.0,105400.0,1.18080485]
[1762840089098,0.05694,105410.0,105400.0,1.18080485]
[1762840091094,0.01318,105410.0,105400.0,1.18080485]
[1762840091401,0.05697,105420.0,105410.0,0.0949015]
[1762840091600,0.05916803,105420.0,105410.0,0.71174402]
[1762840091800,0.05916803,105420.0,105410.0,0.8542146]
[1762840092105,0.05916803,105420.0,105410.0,0.94908675]
[1762840093006,0.06116803,105420.0,105410.0,0.94908675]
[1762840096004,0.06116803,105420.0,105410.0,0.83001971]
[1762840098607,0.04003803,105420.0,105410.0,0.83001971]
[1762840099002,0.06116803,105420.0,105410.0,0.83001971]
[1762840100512,0.04003803,105420.0,105410.0,0.83001971]
[1762840100900,0.002,105420.0,105410.0,0.92390745]
[1762840101409,0.01518,105420.0,105410.0,1.09433558]
[1762840101610,0.01518,105420.0,105410.0,1.23760784]
[1762840101807,0.03677,105420.0,105410.0,1.33149558]
[1762840102008,0.05972,105420.0,105410.0,1.33149558]
[1762840102214,0.03477,105420.0,105410.0,1.09533558]
[1762840102408,0.03477,105420.0,105410.0,1.33249558]
[1762840102609,0.05786245,105430.0,105420.0,0.0948925]
[1762840102814,0.01332245,105430.0,105420.0,0.79562214]
[1762840103008,0.03491245,105430.0,105420.0,0.93741709]
[1762840103305,0.03491245,105430.0,105420.0,0.91321382]
[1762840103306,0.05786245,105430.0,105420.0,0.91321382]
[1762840103514,0.03491245,105430.0,105420.0,0.91321382]
[1762840105211,0.06006048,105430.0,105420.0,0.91321382]
[1762840106306,0.06006048,105430.0,105420.0,0.81932608]
[1762840107014,0.06006048,105430.0,105420.0,0.91321382]
[1762840107920,0.06006048,105430.0,105420.0,0.81932608]
[1762840108112,0.06006048,105430.0,105420.0,1.47325838]
[1762840108512,0.06006048,105430.0,105420.0,1.60325838]
[1762840108818,0.06006048,105430.0,105420.0,1.73325838]
[1762840109118,0.06006048,105430.0,105420.0,0.80353838]
[1762840109319,0.06006048,105430.0,105420.0,0.44867523]
[1762840109821,0.15494398,105430.0,105420.0,0.44867523]
[1762840110424,0.06006048,105430.0,105420.0,0.55867523]
[1762840110614,0.06006048,105430.0,105420.0,0.93745547]
[1762840110921,0.06006048,105430.0,105420.0,0.72446293]
[1762840111216,0.06006048,105430.0,105420.0,0.62957043]
[1762840111422,0.06006048,105430.0,105420.0,0.72446293]
[1762840112528,0.15494398,105430.0,105420.0,0.32957043]
[1762840112915,0.15494398,105430.0,105420.0,0.35478749]
[1762840113422,0.15494398,105430.0,105420.0,0.1191048]
[1762840113612,0.15494398,105430.0,105420.0,0.21299254]
[1762840113925,0.15494398,105430.0,105420.0,0.1191048]
[1762840114112,0.15494398,105430.0,105420.0,0.21299254]
[1762840114313,0.06006048,105430.0,105420.0,0.53177278]
[1762840114514,0.06006048,105430.0,105420.0,0.73177278]
[1762840114817,0.06006048,105430.0,105420.0,0.87490679]
[1762840117819,0.06006048,105430.0,105420.0,1.06364869]
[1762840118017,0.03491245,105430.0,105420.0,1.06364869]
[1762840118318,0.01332245,105430.0,105420.0,0.94454389]
[1762840118914,0.00014245,105430.0,105420.0,0.94454389]
[1762840119111,0.00014245,105430.0,105420.0,1.11497202]
[1762840120619,0.01332245,105430.0,105420.0,1.11497202]
[1762840121625,0.03711048,105430.0,105420.0,1.11497202]
[1762840121825,0.06006048,105430.0,105420.0,1.11497202]
[1762840122224,0.03711048,105430.0,105420.0,1.11497202]
[1762840122614,0.01552048,105430.0,105420.0,1.11497202]
[1762840123127,0.01332245,105430.0,105420.0,1.11497202]
[1762840123327,0.00014245,105430.0,105420.0,1.11497202]
[1762840123619,0.01332245,105430.0,105420.0,1.11497202]
[1762840123826,0.03491245,105430.0,105420.0,1.11497202]
[1762840124033,0.01332245,105430.0,105420.0,1.11497202]
[1762840125925,0.03491245,105430.0,105420.0,1.11497202]
[1762840126325,0.01332245,105430.0,105420.0,1.11497202]
[1762840126526,0.06006048,105430.0,105420.0,0.8333088]
[1762840126723,0.06006048,105430.0,105420.0,1.02108428]
[1762840126931,0.06006048,105430.0,105420.0,1.1403732]
[1762840127227,0.06006048,105430.0,105420.0,0.87509091]
[1762840127427,0.06006048,105430.0,105420.0,0.75580199]
[1762840128216,0.06006048,105430.0,105420.0,0.87509091]
[1762840128522,0.06006048,105430.0,105420.0,0.75580199]
[1762840129117,0.06006048,105430.0,105420.0,0.87511283]
[1762840130431,0.06006048,105430.0,105420.0,0.57022033]
[1762840130732,0.06006048,105430.0,105420.0,0.73022033]
[1762840131134,0.06006048,105430.0,105420.0,0.82511283]
[1762840131531,0.06006048,105430.0,105420.0,0.70580199]
[1762840132935,0.06006048,105430.0,105420.0,0.61090949]
[1762840133233,0.06006048,105430.0,105420.0,0.69580199]
[1762840142636,0.01552048,105430.0,105420.0,0.78968973]
[1762840142936,0.03792048,105430.0,105420.0,0.78968973]
[1762840143132,0.00014245,105430.0,105420.0,0.88454389]
[1762840143334,0.00014245,105430.0,105420.0,1.05497202]
[1762840144029,0.00014245,105430.0,105420.0,0.88454389]
[1762840145132,0.00014245,105430.0,105420.0,1.81422389]
[1762840148039,0.00014245,105430.0,105420.0,1.98466117]
[1762840148936,0.00014245,105430.0,105420.0,1.89066471]
[1762840150637,0.00014245,105430.0,105420.0,1.72022743]
[1762840151637,0.01302245,105430.0,105420.0,1.72022743]
[1762840151833,0.01522048,105430.0,105420.0,1.72022743]
[1762840152040,0.06020048,105430.0,105420.0,1.72022743]
[1762840153836,0.06020048,105430.0,105420.0,1.89065786]
[1762840154039,0.06020048,105430.0,105420.0,1.89061786]
[1762840154244,0.06020048,105430.0,105420.0,0.71739782]
[1762840154444,0.06020048,105430.0,105420.0,0.81229032]
[1762840154742,0.06020048,105430.0,105420.0,0.76117897]
[1762840156944,0.06020048,105430.0,105420.0,0.85501235]
[1762840159651,0.06020048,105430.0,105420.0,0.73569327]
[1762840160557,0.01522048,105430.0,105420.0,0.94986651]
[1762840160759,0.05961048,105430.0,105420.0,0.94986651]
[1762840160949,0.05961048,105430.0,105420.0,0.83054743]
[1762840162658,0.05961048,105430.0,105420.0,0.73569327]
[1762840163863,0.05961048,105430.0,105420.0,0.47629562]
[1762840164065,0.05961048,105430.0,105420.0,0.64629562]
[1762840164764,0.05961048,105430.0,105420.0,0.74118812]
[1762840164964,0.05961048,105430.0,105420.0,0.8350215]
[1762840165166,0.05961048,105430.0,105420.0,0.71569327]
[1762840166565,0.05961048,105430.0,105420.0,0.8861237]
[1762840168355,0.03838048,105430.0,105420.0,0.8861237]
[1762840168555,0.05757,105450.0,105440.0,0.0948745]
[1762840168763,0.05976803,105450.0,105440.0,0.63804056]
[1762840168967,0.05976803,105450.0,105440.0,0.78041222]
[1762840170065,0.06076803,105450.0,105440.0,0.78041222]
[1762840170664,0.06076803,105450.0,105440.0,0.65553772]
[1762840170859,0.06376803,105450.0,105440.0,0.65553772]
[1762840171061,0.06376803,105450.0,105440.0,0.75041222]
[1762840171556,0.06376803,105450.0,105440.0,0.65553772]
[1762840171763,0.06376803,105450.0,105440.0,0.35553772]
[1762840172160,0.06376803,105450.0,105440.0,0.26170434]
[1762840172161,0.15863353,105450.0,105440.0,0.26170434]
[1762840172363,0.15863353,105450.0,105440.0,0.35553772]
[1762840172669,0.15863353,105450.0,105440.0,0.26170434]
[1762840172868,0.15863353,105450.0,105440.0,0.35553772]
[1762840174373,0.15863353,105450.0,105440.0,0.29094336]
[1762840174576,0.15863353,105450.0,105440.0,0.38581786]
[1762840174764,0.15863353,105450.0,105440.0,0.29198448]
[1762840177666,0.15863353,105450.0,105440.0,0.11933268]
[1762840177971,0.1528345,105440.0,105430.0,0.21435313]
[1762840178161,0.15503253,105440.0,105430.0,0.21435313]
[1762840178665,0.15503253,105440.0,105430.0,0.30818651]
[1762840180068,0.15703253,105440.0,105430.0,0.30818651]
[1762840182574,0.15703253,105440.0,105430.0,0.11947513]
[1762840182768,0.15703253,105440.0,105430.0,0.00014245]
[1762840183867,0.25086591,105440.0,105430.0,0.00014245]
[1762840188980,0.25086591,105440.0,105430.0,0.08535598]
[1762840189680,0.25086591,105440.0,105430.0,0.00014245]
[1762840191388,0.15703253,105440.0,105430.0,0.00014245]
[1762840191679,0.1518935,105430.0,105420.0,0.17904691]
[1762840191879,0.15409153,105430.0,105420.0,0.08521353]
[1762840192777,0.1519025,105420.0,105410.0,0.08535598]
[1762840192982,0.15410053,105420.0,105410.0,0.00014245]
[1762840195180,0.15410053,105420.0,105410.0,0.11947513]
[1762840195575,0.15610053,105420.0,105410.0,0.11947513]
[1762840196382,0.15610053,105420.0,105410.0,0.00014245]
[1762840196784,0.15610053,105420.0,105410.0,0.0852823]
[1762840200384,0.15610053,105420.0,105410.0,0.17911568]
[1762840200784,0.06120803,105420.0,105410.0,0.56401718]
[1762840204580,0.05920803,105420.0,105410.0,0.56501718]
[1762840205686,0.05920803,105420.0,105410.0,0.81003816]
[1762840205687,0.01323,105420.0,105410.0,0.81003816]
[1762840205893,0.05890803,105420.0,105410.0,0.83541662]
[1762840206294,0.05890803,105420.0,105410.0,0.71620478]
[1762840206800,0.05890803,105420.0,105410.0,0.74057265]
[1762840207989,0.05890803,105420.0,105410.0,0.64567115]
[1762840208188,0.15380053,105420.0,105410.0,0.62567115]
[1762840208390,0.05890803,105420.0,105410.0,0.49567115]
[1762840208901,0.15380053,105420.0,105410.0,0.49567115]
[1762840209096,0.05890803,105420.0,105410.0,0.45057265]
[1762840209399,0.05890803,105420.0,105410.0,0.74057265]
[1762840210096,0.05890803,105420.0,105410.0,0.64567115]
[1762840210392,0.05890803,105420.0,105410.0,0.35567115]
[1762840210599,0.05890803,105420.0,105410.0,0.72057265]
[1762840210898,0.05890803,105420.0,105410.0,0.72063348]
[1762840211696,0.05890803,105420.0,105410.0,0.72072581]
[1762840212586,0.05890803,105420.0,105410.0,0.60140246]
[1762840219401,0.05890803,105420.0,105410.0,0.50650096]
[1762840219603,0.15380053,105420.0,105410.0,0.23650096]
[1762840219904,0.05890803,105420.0,105410.0,0.58078491]
[1762840220508,0.05890803,105420.0,105410.0,0.78078491]
[1762840220699,0.05890803,105420.0,105410.0,0.66140246]
[1762840221904,0.15380053,105420.0,105410.0,0.23650096]
[1762840222106,0.15380053,105420.0,105410.0,0.23750825]
[1762840222407,0.15380053,105420.0,105410.0,0.33140246]
[1762840223314,0.05890803,105420.0,105410.0,0.46140246]
[1762840223510,0.05890803,105420.0,105410.0,0.62140246]
[1762840224010,0.15380053,105420.0,105410.0,0.33140246]
[1762840224514,0.15380053,105420.0,105410.0,0.23750825]
[1762840224704,0.15380053,105420.0,105410.0,0.45140246]
[1762840224906,0.15380053,105420.0,105410.0,0.33140246]
[1762840225206,0.15380053,105420.0,105410.0,0.41668346]
[1762840225711,0.15380053,105420.0,105410.0,0.33140246]
[1762840225913,0.15380053,105420.0,105410.0,0.45078491]
[1762840226414,0.15380053,105420.0,105410.0,0.2619892]
[1762840226607,0.15380053,105420.0,105410.0,0.35588341]
[1762840227008,0.15380053,105420.0,105410.0,0.45078491]
[1762840228613,0.24769474,105420.0,105410.0,0.45078491]
[1762840228814,0.34158895,105420.0,105410.0,0.20582517]
[1762840229112,0.34158895,105420.0,105410.0,0.08644272]
[1762840230310,0.34158895,105420.0,105410.0,0.00114245]
[1762840230707,0.34158895,105420.0,105410.0,0.00014245]
[1762840231903,0.34158895,105420.0,105410.0,2.45e-06]
[1762840232104,0.34258895,105420.0,105410.0,2.45e-06]
[1762840232510,0.34358895,105420.0,105410.0,2.45e-06]
[1762840233014,0.34458895,105420.0,105410.0,2.45e-06]
[1762840235512,0.15680053,105420.0,105410.0,2.45e-06]
[1762840235811,0.34458895,105420.0,105410.0,2.45e-06]
[1762840240315,0.25069474,105420.0,105410.0,0.09389666]
[1762840240618,0.25069474,105420.0,105410.0,0.17919693]
[1762840240811,0.25069474,105420.0,105410.0,0.08530272]
[1762840241010,0.25069474,105420.0,105410.0,0.17919693]
[1762840241721,0.25069474,105420.0,105410.0,0.27409833]
[1762840242109,0.24769474,105420.0,105410.0,0.27409833]
[1762840242305,0.24869474,105420.0,105410.0,0.40409833]
[1762840242611,0.15480053,105420.0,105410.0,0.40409833]
[1762840242816,0.15480053,105420.0,105410.0,0.54409833]
[1762840243017,0.15480053,105420.0,105410.0,0.45879806]
[1762840243209,0.15480053,105420.0,105410.0,0.57818051]
[1762840243409,0.15380053,105420.0,105410.0,0.57818051]
[1762840243809,0.15380053,105420.0,105410.0,0.48327911]
[1762840244818,0.15380053,105420.0,105410.0,0.57818051]
[1762840245018,0.15380053,105420.0,105410.0,0.58018051]
[1762840245319,0.05890803,105420.0,105410.0,0.58118051]
[1762840245519,0.15380043,105420.0,105410.0,0.48627911]
[1762840245911,0.15380043,105420.0,105410.0,0.36689666]
[1762840247615,0.15380043,105420.0,105410.0,0.46179806]
[1762840247820,0.15380043,105420.0,105410.0,0.36689666]
[1762840248621,0.15380043,105420.0,105410.0,0.09689666]
[1762840250321,0.05890803,105420.0,105410.0,0.21689666]
[1762840250828,0.05890803,105420.0,105410.0,0.39694962]
[1762840251027,0.05890803,105420.0,105410.0,0.48305541]
[1762840251324,0.05890803,105420.0,105410.0,0.57694962]
[1762840252021,0.15380043,105420.0,105410.0,0.49179816]
[1762840252225,0.05890803,105420.0,105410.0,0.49179816]
[1762840253126,0.15380043,105420.0,105410.0,0.49179816]
[1762840253334,0.15380043,105420.0,105410.0,0.22689666]
[1762840253526,0.05890803,105420.0,105410.0,0.32179816]
[1762840254118,0.15380043,105420.0,105410.0,0.09689666]
[1762840256828,0.15380043,105420.0,105410.0,0.18204822]
[1762840257732,0.15380043,105420.0,105410.0,0.27694962]
[1762840257932,0.05890803,105420.0,105410.0,0.40694962]
[1762840258132,0.05890803,105420.0,105410.0,0.47179806]
[1762840259132,0.05890803,105420.0,105410.0,0.55694962]
[1762840259325,0.05890803,105420.0,105410.0,0.67633207]
[1762840259624,0.05890803,105420.0,105410.0,0.59118051]
[1762840261628,0.01542803,105420.0,105410.0,0.82756887]
[1762840261930,0.05913,105430.0,105420.0,0.0948924]
[1762840262134,0.01323,105430.0,105420.0,0.68206327]
[1762840262628,0.03651,105430.0,105420.0,0.82507714]
[1762840262928,0.01323,105430.0,105420.0,0.82507714]
[1762840263129,0.03699245,105440.0,105430.0,0.0948834]
[1762840263325,0.00014245,105440.0,105430.0,0.58267182]
[1762840263523,0.06144048,105440.0,105430.0,0.72431242]
[1762840264324,0.06144048,105440.0,105430.0,0.23553481]
[1762840264530,0.06144048,105440.0,105430.0,0.1416406]
[1762840264729,0.06144048,105440.0,105430.0,0.23553481]
[1762840265034,0.06144048,105440.0,105430.0,0.49463901]
[1762840265334,0.06144048,105440.0,105430.0,0.43098923]
[1762840265533,0.15731498,105440.0,105430.0,0.43098923]
[1762840265731,0.25120919,105440.0,105430.0,0.32060111]
[1762840266036,0.25120919,105440.0,105430.0,0.17896051]
[1762840266534,0.15731498,105440.0,105430.0,0.17896051]
[1762840268434,0.25120919,105440.0,105430.0,0.17896051]
[1762840270434,0.15731498,105440.0,105430.0,0.17896051]
[1762840270832,0.15731498,105440.0,105430.0,0.0850663]
[1762840271233,0.15731498,105440.0,105430.0,0.1799497]
[1762840271530,0.06244048,105440.0,105430.0,0.2999497]
[1762840271734,0.15731488,105440.0,105430.0,0.27382418]
[1762840272234,0.15731488,105440.0,105430.0,0.0850663]
[1762840273034,0.25118936,105440.0,105430.0,0.0850663]
[1762840273233,0.25118936,105440.0,105430.0,0.0150663]
[1762840273428,0.1539834,105430.0,105420.0,0.08517165]
[1762840273635,0.25005591,105430.0,105420.0,0.08517165]
[1762840274140,0.1080924,105420.0,105410.0,0.16310665]
[1762840274333,0.15619043,105420.0,105410.0,0.16310665]
[1762840274638,0.15619043,105420.0,105410.0,0.04400245]
[1762840275933,0.15619043,105420.0,105410.0,0.13990385]
[1762840276138,0.15619043,105420.0,105410.0,0.14190385]
[1762840276336,0.15619043,105420.0,105410.0,0.23577833]
[1762840276841,0.15619043,105420.0,105410.0,0.23377833]
[1762840277036,0.15619043,105420.0,105410.0,0.36377833]
[1762840277442,0.15619043,105420.0,105410.0,0.36277833]
[1762840277636,0.15619043,105420.0,105410.0,0.26887693]
[1762840277843,0.15619043,105420.0,105410.0,0.13887693]
[1762840278141,0.15619043,105420.0,105410.0,0.04500245]
[1762840279238,0.15619043,105420.0,105410.0,0.17500245]
[1762840279443,0.06129803,105420.0,105410.0,0.26990385]
[1762840279640,0.15619043,105420.0,105410.0,0.26887693]
[1762840280238,0.15619043,105420.0,105410.0,0.13887693]
[1762840280641,0.06129803,105420.0,105410.0,0.26887693]
[1762840280843,0.15619043,105420.0,105410.0,0.26887693]
[1762840281741,0.15619043,105420.0,105410.0,0.41887693]
[1762840282135,0.02547803,105420.0,105410.0,0.52367833]
[1762840282444,0.14124043,105420.0,105410.0,0.14877693]
[1762840282744,0.15519043,105420.0,105410.0,0.42877693]
[1762840282940,0.05735,105430.0,105420.0,0.04514]
[1762840283242,0.15518143,105430.0,105420.0,0.13901448]
[1762840283638,0.15518143,105430.0,105420.0,0.25901448]
[1762840283838,0.15518143,105430.0,105420.0,0.40901448]
[1762840284137,0.15618143,105430.0,105420.0,0.40901448]
[1762840284337,0.15618143,105430.0,105420.0,0.41891448]
[1762840284338,0.04734803,105430.0,105420.0,0.41891448]
[1762840284538,0.00319803,105430.0,105420.0,0.80087359]
[1762840284841,0.04734803,105430.0,105420.0,0.70699911]
[1762840285041,0.04734803,105430.0,105420.0,0.58789491]
[1762840285437,0.04734803,105430.0,105420.0,0.58889491]
[1762840285632,0.04634803,105430.0,105420.0,0.58889491]
[1762840286533,0.05824245,105440.0,105430.0,0.1400234]
[1762840286732,0.06044048,105440.0,105430.0,0.65310334]
[1762840287640,0.06044048,105440.0,105430.0,0.25821994]
[1762840287834,0.24918946,105440.0,105430.0,0.02319]
[1762840288442,0.24918946,105440.0,105420.0,0.16434546]
[1762840288443,0.1529834,105430.0,105420.0,0.16434546]
[1762840288651,0.15518143,105430.0,105420.0,0.04514]
[1762840290248,0.15518153,105430.0,105420.0,0.23490698]
[1762840290448,0.15518153,105430.0,105420.0,0.14001448]
[1762840290938,0.15518153,105430.0,105420.0,0.04614]
[1762840294347,0.15518153,105430.0,105420.0,0.04514]
[1762840295149,0.15618153,105430.0,105420.0,0.04514]
[1762840297055,0.1513825,105420.0,105410.0,0.04422245]
[1762840297348,0.15358053,105420.0,105410.0,0.18595586]
[1762840297652,0.15358053,105420.0,105410.0,0.3990358]
[1762840297944,0.15358053,105420.0,105410.0,0.16342791]
[1762840298141,0.15358053,105420.0,105410.0,0.25832941]
[1762840298352,0.15358053,105420.0,105410.0,0.13912395]
[1762840299444,0.15358053,105420.0,105410.0,0.14012395]
[1762840299744,0.15358053,105420.0,105410.0,0.41012395]
[1762840299951,0.15358053,105420.0,105410.0,0.50399843]
[1762840300850,0.15358053,105420.0,105410.0,0.13909693]
[1762840303050,0.15358053,105420.0,105410.0,0.23399843]
[1762840303248,0.05868803,105420.0,105410.0,0.34399843]
[1762840303454,0.05868803,105420.0,105410.0,0.60320389]
[1762840303661,0.15358053,105420.0,105410.0,0.60320389]
[1762840303846,0.15358053,105420.0,105410.0,0.35320389]
[1762840304047,0.15358053,105420.0,105410.0,0.25830239]
[1762840304355,0.15358053,105420.0,105410.0,0.35320389]
[1762840304654,0.05868803,105420.0,105410.0,0.47320389]
[1762840304846,0.05868803,105420.0,105410.0,0.68320389]
[1762840305753,0.15358053,105420.0,105410.0,0.58830239]
[1762840306055,0.48358053,105420.0,105410.0,0.38830239]
[1762840306857,0.48358053,105420.0,105410.0,0.48320389]
[1762840307154,0.38868803,105420.0,105410.0,0.63320389]
[1762840307348,0.37575803,105420.0,105410.0,0.64310389]
[1762840307549,0.37575803,105420.0,105410.0,0.52389843]
[1762840310168,0.33,105420.0,105410.0,0.52389843]
[1762840312252,0.37567803,105420.0,105410.0,0.52389843]
[1762840312456,0.48320053,105420.0,105410.0,0.16456404]
[1762840312954,0.48320053,105420.0,105410.0,0.04522245]
[1762840315061,0.48320053,105420.0,105410.0,0.04422245]
[1762840315249,0.48320053,105420.0,105410.0,0.04522245]
[1762840315660,0.48320053,105420.0,105410.0,0.04422245]
[1762840316260,0.48420053,105420.0,105410.0,0.04422245]
[1762840316457,0.48420053,105420.0,105410.0,0.04522245]
[1762840316859,0.48420053,105420.0,105410.0,0.04422245]
[1762840317960,0.48420053,105420.0,105410.0,0.13809693]
[1762840318556,0.48420053,105420.0,105410.0,0.13909693]
[1762840318759,0.48420053,105420.0,105410.0,0.35399833]
[1762840319064,0.38830803,105420.0,105410.0,0.53399833]
[1762840319356,0.48320043,105420.0,105410.0,0.23399833]
[1762840319757,0.48320043,105420.0,105410.0,0.35333992]
[1762840320461,0.38830803,105420.0,105410.0,0.35333992]
[1762840320664,0.38830803,105420.0,105410.0,0.62333992]
[1762840321573,0.48320043,105420.0,105410.0,0.52843852]
[1762840321772,0.48320043,105420.0,105410.0,0.13909693]
[1762840322174,0.38830803,105420.0,105410.0,0.23399833]
[1762840322374,0.38830803,105420.0,105410.0,0.35399833]
[1762840322571,0.38830803,105420.0,105410.0,0.23399833]
[1762840322773,0.38830803,105420.0,105410.0,0.49399833]
[1762840322974,0.38830803,105420.0,105410.0,0.50152833]
[1762840323375,0.37567803,105420.0,105410.0,0.50152833]
[1762840324487,0.03546,105470.0,105450.0,0.0948595]
[1762840324784,0.08442267,105470.0,105460.0,0.55116901]
[1762840324979,0.01369,105470.0,105460.0,0.89116901]
[1762840325185,0.38672,105470.0,105460.0,1.26953879]
[1762840325384,0.05672,105470.0,105460.0,1.11756576]
[1762840325576,0.05745267,105470.0,105460.0,1.11753194]
[1762840325771,0.36745267,105470.0,105460.0,0.087265]
[1762840325971,0.05672,105460.0,105450.0,0.30151617]
[1762840326173,0.41745267,105460.0,105450.0,0.46165496]
[1762840326377,0.41745267,105460.0,105450.0,0.45965496]
[1762840326677,0.41745267,105460.0,105450.0,0.55452046]
[1762840326883,0.41745267,105460.0,105450.0,0.85452046]
[1762840327083,0.41745267,105460.0,105450.0,0.69452046]
[1762840327884,0.41745267,105460.0,105450.0,0.55452046]
[1762840328088,0.41745267,105460.0,105450.0,0.86452046]
[1762840328278,0.41745267,105460.0,105450.0,0.86652046]
[1762840328482,0.41745267,105460.0,105450.0,0.86752046]
[1762840328984,0.41745267,105460.0,105450.0,1.10128311]
[1762840329186,0.41745267,105460.0,105450.0,0.80940863]
[1762840329387,0.51230917,105460.0,105450.0,0.51066865]
[1762840329585,0.41745267,105460.0,105450.0,0.00534048]
[1762840329784,0.41745267,105460.0,105450.0,0.08040155]
[1762840329984,0.51230917,105460.0,105450.0,0.00534048]
[1762840330686,0.41745267,105460.0,105450.0,0.31408046]
[1762840330890,0.41745267,105460.0,105450.0,0.31308046]
[1762840331193,0.41745267,105460.0,105450.0,0.49308046]
[1762840331387,0.41745267,105460.0,105450.0,0.19108046]
[1762840331780,0.41745267,105460.0,105450.0,0.32108046]
[1762840331982,0.41745267,105460.0,105450.0,0.47108046]
[1762840332182,0.41745267,105460.0,105450.0,0.00234048]
[1762840332183,0.60618365,105460.0,105450.0,0.00234048]
[1762840332391,0.1515855,105450.0,105440.0,6.964e-05]